[Event "Titled Tuesday Blitz October 31 Early 2023"]
[White "Deuterio010"]
[Black "alfianasybullina"]
[WhiteElo "2456"]
[BlackElo "2308"]
[Result "1-0"]
[Round "9"]
[TimeControl "180+1"]
[Date "2023.10.31"]
[WhiteClock "0:00:59"]
[BlackClock "0:00:43"]
[Board "96"]

1. e4 {[%clk 0:03:00]}  e6 {[%clk 0:02:59]} 2. d4 {[%clk 0:02:59]}  d5 {[%clk 0:02:58]} 3. Bd3 {[%clk 0:03:00]}  dxe4 {[%clk 0:02:55]} 4. Bxe4 {[%clk 0:03:01]}  Nf6 {[%clk 0:02:56]} 5. Bf3 {[%clk 0:03:01]}  c5 {[%clk 0:02:56]} 6. Ne2 {[%clk 0:02:59]}  Nc6 {[%clk 0:02:55]} 7. Be3 {[%clk 0:02:56]}  cxd4 {[%clk 0:02:53]} 8. Nxd4 {[%clk 0:02:57]}  Nxd4 {[%clk 0:02:52]} 9. Bxd4 {[%clk 0:02:54]}  Be7 {[%clk 0:02:52]} 10. O-O {[%clk 0:02:52]}  O-O {[%clk 0:02:51]} 11. c3 {[%clk 0:02:50]}  Qa5 {[%clk 0:02:46]} 12. Nd2 {[%clk 0:02:46]}  Nd5 {[%clk 0:02:39]} 13. Qe2 {[%clk 0:02:43]}  Bf6 {[%clk 0:02:35]} 14. Nb3 {[%clk 0:02:32]}  Qd8 {[%clk 0:02:21]} 15. Rad1 {[%clk 0:02:28]}  Bxd4 {[%clk 0:02:18]} 16. Rxd4 {[%clk 0:02:29]}  Qb6 {[%clk 0:02:04]} 17. Bxd5 {[%clk 0:02:23]}  exd5 {[%clk 0:02:05]} 18. Rxd5 {[%clk 0:02:18]}  Be6 {[%clk 0:02:04]} 19. Rb5 {[%clk 0:01:58]}  Qa6 {[%clk 0:01:52]} 20. Nc5 {[%clk 0:01:53]}  Qxa2 {[%clk 0:01:52]} 21. Nxe6 {[%clk 0:01:53]}  Qxe6 {[%clk 0:01:48]} 22. Qxe6 {[%clk 0:01:53]}  fxe6 {[%clk 0:01:49]} 23. Rxb7 {[%clk 0:01:54]}  Rab8 {[%clk 0:01:47]} 24. Rxb8 {[%clk 0:01:49]}  Rxb8 {[%clk 0:01:48]} 25. b4 {[%clk 0:01:47]}  Rc8 {[%clk 0:01:42]} 26. Rc1 {[%clk 0:01:44]}  Rc4 {[%clk 0:01:42]} 27. Kf1 {[%clk 0:01:42]}  e5 {[%clk 0:01:42]} 28. Ke2 {[%clk 0:01:41]}  e4 {[%clk 0:01:43]} 29. Kd2 {[%clk 0:01:38]}  Kf7 {[%clk 0:01:42]} 30. Kc2 {[%clk 0:01:37]}  Ke6 {[%clk 0:01:40]} 31. Kb3 {[%clk 0:01:36]}  Rc7 {[%clk 0:01:41]} 32. Re1 {[%clk 0:01:31]}  Kf5 {[%clk 0:01:36]} 33. Re3 {[%clk 0:01:28]}  g5 {[%clk 0:01:30]} 34. f3 {[%clk 0:01:25]}  exf3 {[%clk 0:01:29]} 35. Rxf3+ {[%clk 0:01:26]}  Ke4 {[%clk 0:01:28]} 36. Rf6 {[%clk 0:01:23]}  h5 {[%clk 0:01:25]} 37. c4 {[%clk 0:01:20]}  g4 {[%clk 0:01:22]} 38. Rh6 {[%clk 0:01:15]}  Kd4 {[%clk 0:01:10]} 39. c5 {[%clk 0:01:10]}  a5 {[%clk 0:01:10]} 40. Rxh5 {[%clk 0:01:06]}  axb4 {[%clk 0:01:10]} 41. Kxb4 {[%clk 0:01:07]}  Rb7+ {[%clk 0:00:59]} 42. Ka5 {[%clk 0:01:04]}  Ra7+ {[%clk 0:00:57]} 43. Kb6 {[%clk 0:01:03]}  Ra2 {[%clk 0:00:58]} 44. c6 {[%clk 0:01:02]}  Rb2+ {[%clk 0:00:57]} 45. Rb5 {[%clk 0:01:02]}  Rxg2 {[%clk 0:00:56]} 46. c7 {[%clk 0:00:59]}  Rc2 {[%clk 0:00:43]} 47. Kb7 {[%clk 0:00:59]} 1-0


[Site "https://www.chess.com"]

[Event "Titled Tuesday Blitz October 31 Early 2023"]
[White "MIM06"]
[Black "Rosh Jain"]
[BlackFideId "25789465"]
[WhiteElo "2207"]
[BlackElo "2440"]
[Result "1/2-1/2"]
[Round "9"]
[TimeControl "180+1"]
[Date "2023.10.31"]
[WhiteClock "0:00:31"]
[BlackClock "0:00:27"]
[Board "97"]

1. e4 {[%clk 0:03:00]}  e5 {[%clk 0:02:58]} 2. Nf3 {[%clk 0:03:00]}  Nc6 {[%clk 0:02:58]} 3. Bb5 {[%clk 0:03:00]}  a6 {[%clk 0:02:58]} 4. Ba4 {[%clk 0:03:00]}  Nf6 {[%clk 0:02:57]} 5. d3 {[%clk 0:03:00]}  Be7 {[%clk 0:02:51]} 6. c3 {[%clk 0:03:00]}  O-O {[%clk 0:02:51]} 7. O-O {[%clk 0:02:59]}  b5 {[%clk 0:02:47]} 8. Bc2 {[%clk 0:02:58]}  d6 {[%clk 0:02:40]} 9. Bg5 {[%clk 0:02:56]}  Bb7 {[%clk 0:02:34]} 10. Nbd2 {[%clk 0:02:54]}  Nb8 {[%clk 0:02:34]} 11. Re1 {[%clk 0:02:50]}  Nbd7 {[%clk 0:02:34]} 12. d4 {[%clk 0:02:48]}  c5 {[%clk 0:02:33]} 13. h3 {[%clk 0:02:46]}  h6 {[%clk 0:02:31]} 14. Bh4 {[%clk 0:02:45]}  Re8 {[%clk 0:02:26]} 15. Nf1 {[%clk 0:02:20]}  g5 {[%clk 0:02:14]} 16. Bg3 {[%clk 0:02:20]}  Bf8 {[%clk 0:02:13]} 17. d5 {[%clk 0:02:07]}  Nb6 {[%clk 0:01:57]} 18. Ne3 {[%clk 0:02:07]}  Bc8 {[%clk 0:01:54]} 19. a4 {[%clk 0:02:03]}  Bd7 {[%clk 0:01:52]} 20. b3 {[%clk 0:01:49]}  Bg7 {[%clk 0:01:44]} 21. a5 {[%clk 0:01:35]}  Nc8 {[%clk 0:01:43]} 22. c4 {[%clk 0:01:30]}  b4 {[%clk 0:01:37]} 23. Nh2 {[%clk 0:01:18]}  Ne7 {[%clk 0:01:36]} 24. Nhg4 {[%clk 0:01:16]}  Ng6 {[%clk 0:01:36]} 25. Nxf6+ {[%clk 0:01:15]}  Qxf6 {[%clk 0:01:36]} 26. Qh5 {[%clk 0:01:11]}  Qd8 {[%clk 0:01:30]} 27. Ng4 {[%clk 0:01:01]}  Bxg4 {[%clk 0:01:29]} 28. Qxg4 {[%clk 0:00:58]}  Qc8 {[%clk 0:01:29]} 29. Qxc8 {[%clk 0:00:52]}  Raxc8 {[%clk 0:01:30]} 30. Bd1 {[%clk 0:00:53]}  Ne7 {[%clk 0:01:28]} 31. Bg4 {[%clk 0:00:53]}  Rc7 {[%clk 0:01:28]} 32. Re3 {[%clk 0:00:49]}  Rf8 {[%clk 0:01:27]} 33. Rf3 {[%clk 0:00:48]}  Rb7 {[%clk 0:01:15]} 34. Bf5 {[%clk 0:00:47]}  Nxf5 {[%clk 0:00:55]} 35. Rxf5 {[%clk 0:00:48]}  f6 {[%clk 0:00:53]} 36. f3 {[%clk 0:00:45]}  Kf7 {[%clk 0:00:49]} 37. h4 {[%clk 0:00:44]}  Kg6 {[%clk 0:00:45]} 38. Bf2 {[%clk 0:00:40]}  Rff7 {[%clk 0:00:40]} 39. g4 {[%clk 0:00:39]}  Bf8 {[%clk 0:00:39]} 40. h5+ {[%clk 0:00:36]}  Kg7 {[%clk 0:00:39]} 41. Kf1 {[%clk 0:00:36]}  Be7 {[%clk 0:00:39]} 42. Ke2 {[%clk 0:00:35]}  Bd8 {[%clk 0:00:33]} 43. Kd2 {[%clk 0:00:35]}  Rfc7 {[%clk 0:00:32]} 44. Kc2 {[%clk 0:00:34]}  Rb8 {[%clk 0:00:32]} 45. Be3 {[%clk 0:00:33]}  Rcb7 {[%clk 0:00:32]} 46. Ra2 {[%clk 0:00:33]}  Bc7 {[%clk 0:00:29]} 47. Ra1 {[%clk 0:00:33]}  Bd8 {[%clk 0:00:28]} 48. Ra2 {[%clk 0:00:33]}  Kf7 {[%clk 0:00:27]} 49. Ra1 {[%clk 0:00:31]}  Kg7 {[%clk 0:00:27]} 1/2-1/2


[Site "https://www.chess.com"]

[Event "Titled Tuesday Blitz October 31 Early 2023"]
[White "Kim, Sergey"]
[Black "Witty_Alien"]
[WhiteFideId "13700570"]
[WhiteElo "2581"]
[BlackElo "2258"]
[Result "1-0"]
[Round "9"]
[TimeControl "180+1"]
[Date "2023.10.31"]
[WhiteClock "0:00:48"]
[BlackClock "0:00:00"]
[Board "98"]

1. d4 {[%clk 0:03:00]}  e5 {[%clk 0:02:55]} 2. dxe5 {[%clk 0:03:00]}  d6 {[%clk 0:02:53]} 3. Nf3 {[%clk 0:02:59]}  Nc6 {[%clk 0:02:45]} 4. e4 {[%clk 0:02:59]}  Bg4 {[%clk 0:02:41]} 5. Be2 {[%clk 0:02:59]}  Qd7 {[%clk 0:02:40]} 6. Be3 {[%clk 0:02:55]}  O-O-O {[%clk 0:02:40]} 7. Nbd2 {[%clk 0:02:54]}  Kb8 {[%clk 0:02:37]} 8. c3 {[%clk 0:02:51]}  dxe5 {[%clk 0:02:15]} 9. Qa4 {[%clk 0:02:46]}  a6 {[%clk 0:01:35]} 10. O-O-O {[%clk 0:02:44]}  Nd4 {[%clk 0:01:24]} 11. Qxd7 {[%clk 0:02:34]}  Nxe2+ {[%clk 0:01:24]} 12. Kb1 {[%clk 0:02:31]}  Rxd7 {[%clk 0:01:22]} 13. Nxe5 {[%clk 0:02:23]}  Re7 {[%clk 0:00:05]} 14. Nxg4 {[%clk 0:02:19]}  h5 {[%clk 0:00:05]} 15. h3 {[%clk 0:01:46]}  hxg4 {[%clk 0:00:04]} 16. hxg4 {[%clk 0:01:46]}  Rxh1 {[%clk 0:00:03]} 17. Rxh1 {[%clk 0:01:45]}  Nf6 {[%clk 0:00:01]} 18. Re1 {[%clk 0:01:31]}  Nxg4 {[%clk 0:00:01]} 19. Rxe2 {[%clk 0:01:30]}  Nxe3 {[%clk 0:00:01]} 20. Rxe3 {[%clk 0:01:30]}  Rd7 {[%clk 0:00:01]} 21. Kc2 {[%clk 0:01:29]}  Bc5 {[%clk 0:00:02]} 22. Rf3 {[%clk 0:01:26]}  f6 {[%clk 0:00:02]} 23. Nb3 {[%clk 0:01:20]}  Bb6 {[%clk 0:00:01]} 24. a4 {[%clk 0:01:18]}  Re7 {[%clk 0:00:01]} 25. a5 {[%clk 0:01:15]}  Ba7 {[%clk 0:00:01]} 26. Nd2 {[%clk 0:01:15]}  b5 {[%clk 0:00:01]} 27. Rf5 {[%clk 0:01:07]}  Re8 {[%clk 0:00:01]} 28. f3 {[%clk 0:01:03]}  Kb7 {[%clk 0:00:02]} 29. Rh5 {[%clk 0:01:01]}  Be3 {[%clk 0:00:01]} 30. Nb3 {[%clk 0:00:59]}  Bh6 {[%clk 0:00:01]} 31. Nc5+ {[%clk 0:00:57]}  Kc6 {[%clk 0:00:01]} 32. Nxa6 {[%clk 0:00:56]}  b4 {[%clk 0:00:02]} 33. Nxb4+ {[%clk 0:00:55]}  Kb7 {[%clk 0:00:01]} 34. Rb5+ {[%clk 0:00:49]}  Ka7 {[%clk 0:00:01]} 35. c4 {[%clk 0:00:48]}  Rd8 {[%clk 0:00:01]} 36. Nc6+ {[%clk 0:00:48]}  Ka6 {[%clk 0:00:00]} 37. Nxd8 {[%clk 0:00:48]} 1-0


[Site "https://www.chess.com"]

[Event "Titled Tuesday Blitz October 31 Early 2023"]
[White "Petrova, Irina"]
[Black "LeoLV10"]
[WhiteFideId "14124122"]
[WhiteElo "2314"]
[BlackElo "2533"]
[Result "0-1"]
[Round "9"]
[TimeControl "180+1"]
[Date "2023.10.31"]
[WhiteClock "0:01:12"]
[BlackClock "0:01:07"]
[Board "99"]

1. e4 {[%clk 0:02:59]}  c5 {[%clk 0:02:56]} 2. Nf3 {[%clk 0:02:54]}  e6 {[%clk 0:02:56]} 3. c4 {[%clk 0:02:54]}  Nc6 {[%clk 0:02:55]} 4. Nc3 {[%clk 0:02:53]}  a6 {[%clk 0:02:47]} 5. Be2 {[%clk 0:02:49]}  g6 {[%clk 0:02:43]} 6. d4 {[%clk 0:02:45]}  cxd4 {[%clk 0:02:43]} 7. Nxd4 {[%clk 0:02:46]}  Bg7 {[%clk 0:02:44]} 8. Be3 {[%clk 0:02:40]}  Nge7 {[%clk 0:02:44]} 9. O-O {[%clk 0:02:38]}  O-O {[%clk 0:02:44]} 10. Qd2 {[%clk 0:02:31]}  Qc7 {[%clk 0:02:36]} 11. Rfc1 {[%clk 0:02:28]}  b6 {[%clk 0:02:27]} 12. Nd5 {[%clk 0:02:22]}  exd5 {[%clk 0:02:09]} 13. cxd5 {[%clk 0:02:23]}  Bb7 {[%clk 0:02:03]} 14. dxc6 {[%clk 0:02:20]}  dxc6 {[%clk 0:02:03]} 15. a4 {[%clk 0:02:12]}  Rad8 {[%clk 0:02:01]} 16. Qc3 {[%clk 0:01:36]}  c5 {[%clk 0:01:56]} 17. Qc4 {[%clk 0:01:34]}  Qb8 {[%clk 0:01:38]} 18. Nf3 {[%clk 0:01:32]}  Nc8 {[%clk 0:01:18]} 19. Qc2 {[%clk 0:01:29]}  Nd6 {[%clk 0:01:16]} 20. Nd2 {[%clk 0:01:26]}  Rfe8 {[%clk 0:01:15]} 21. f3 {[%clk 0:01:25]}  Nf5 {[%clk 0:01:15]} 22. Bf2 {[%clk 0:01:24]}  Nd4 {[%clk 0:01:14]} 23. Qd1 {[%clk 0:01:23]}  Bh6 {[%clk 0:01:09]} 24. Rc2 {[%clk 0:01:16]}  Nxc2 {[%clk 0:01:06]} 25. Qxc2 {[%clk 0:01:12]}  Rxd2 {[%clk 0:01:07]} 0-1


[Site "https://www.chess.com"]

[Event "Titled Tuesday Blitz October 31 Early 2023"]
[White "Schut, Han"]
[Black "Herman, Daniel"]
[WhiteFideId "1005561"]
[BlackFideId "30935008"]
[WhiteElo "2288"]
[BlackElo "2437"]
[Result "1-0"]
[Round "9"]
[TimeControl "180+1"]
[Date "2023.10.31"]
[WhiteClock "0:00:14"]
[BlackClock "0:00:07"]
[Board "103"]

1. e4 {[%clk 0:02:59]}  e5 {[%clk 0:03:00]} 2. Nf3 {[%clk 0:02:59]}  Nc6 {[%clk 0:03:00]} 3. Bc4 {[%clk 0:02:59]}  Nf6 {[%clk 0:02:59]} 4. d4 {[%clk 0:02:59]}  exd4 {[%clk 0:02:53]} 5. e5 {[%clk 0:03:00]}  d5 {[%clk 0:02:51]} 6. Bb5 {[%clk 0:02:59]}  Ne4 {[%clk 0:02:49]} 7. Nxd4 {[%clk 0:02:59]}  Bd7 {[%clk 0:02:49]} 8. Bxc6 {[%clk 0:02:59]}  bxc6 {[%clk 0:02:48]} 9. O-O {[%clk 0:03:00]}  Bc5 {[%clk 0:02:47]} 10. f3 {[%clk 0:02:57]}  Ng5 {[%clk 0:02:46]} 11. Be3 {[%clk 0:02:58]}  O-O {[%clk 0:02:33]} 12. f4 {[%clk 0:02:57]}  Ne4 {[%clk 0:02:33]} 13. Nd2 {[%clk 0:02:58]}  Nxd2 {[%clk 0:02:24]} 14. Qxd2 {[%clk 0:02:59]}  Bb6 {[%clk 0:02:24]} 15. Nb3 {[%clk 0:02:57]}  Bf5 {[%clk 0:02:13]} 16. Qc3 {[%clk 0:02:55]}  Qd7 {[%clk 0:01:56]} 17. Bc5 {[%clk 0:02:41]}  Rfe8 {[%clk 0:01:54]} 18. a4 {[%clk 0:02:38]}  a5 {[%clk 0:01:49]} 19. Nd4 {[%clk 0:02:33]}  Be4 {[%clk 0:01:47]} 20. Rf2 {[%clk 0:02:18]}  Rac8 {[%clk 0:01:36]} 21. b4 {[%clk 0:01:47]}  f6 {[%clk 0:01:25]} 22. e6 {[%clk 0:01:39]}  Rxe6 {[%clk 0:01:02]} 23. Nxe6 {[%clk 0:01:40]}  Qxe6 {[%clk 0:01:02]} 24. bxa5 {[%clk 0:01:35]}  Bxc5 {[%clk 0:00:59]} 25. Qxc5 {[%clk 0:01:36]}  Ra8 {[%clk 0:00:40]} 26. Rc1 {[%clk 0:01:10]}  Qd6 {[%clk 0:00:34]} 27. Qc3 {[%clk 0:00:49]}  d4 {[%clk 0:00:21]} 28. Qb3+ {[%clk 0:00:35]}  Qd5 {[%clk 0:00:20]} 29. Qb7 {[%clk 0:00:34]}  c5 {[%clk 0:00:11]} 30. Qxc7 {[%clk 0:00:27]}  h5 {[%clk 0:00:10]} 31. Rb1 {[%clk 0:00:20]}  h4 {[%clk 0:00:09]} 32. h3 {[%clk 0:00:13]}  Kh7 {[%clk 0:00:09]} 33. Rb8 {[%clk 0:00:04]}  Rxb8 {[%clk 0:00:08]} 34. Qxb8 {[%clk 0:00:05]}  c4 {[%clk 0:00:09]} 35. Qb5 {[%clk 0:00:05]}  d3 {[%clk 0:00:07]} 36. Qxd5 {[%clk 0:00:04]}  Bxd5 {[%clk 0:00:08]} 37. cxd3 {[%clk 0:00:05]}  cxd3 {[%clk 0:00:08]} 38. Rd2 {[%clk 0:00:05]}  Bc4 {[%clk 0:00:08]} 39. Kf2 {[%clk 0:00:05]}  Kg6 {[%clk 0:00:07]} 40. Ke3 {[%clk 0:00:06]}  Kf5 {[%clk 0:00:07]} 41. Kd4 {[%clk 0:00:07]}  Ba6 {[%clk 0:00:07]} 42. Kc5 {[%clk 0:00:07]}  Kxf4 {[%clk 0:00:07]} 43. Kb6 {[%clk 0:00:08]}  Bc4 {[%clk 0:00:07]} 44. a6 {[%clk 0:00:08]}  Bxa6 {[%clk 0:00:06]} 45. Kxa6 {[%clk 0:00:08]}  Ke3 {[%clk 0:00:07]} 46. Rd1 {[%clk 0:00:08]}  Ke2 {[%clk 0:00:07]} 47. Ra1 {[%clk 0:00:08]}  d2 {[%clk 0:00:07]} 48. Kb5 {[%clk 0:00:09]}  d1=Q {[%clk 0:00:08]} 49. Rxd1 {[%clk 0:00:09]}  Kxd1 {[%clk 0:00:09]} 50. a5 {[%clk 0:00:10]}  Ke2 {[%clk 0:00:10]} 51. a6 {[%clk 0:00:11]}  Kf2 {[%clk 0:00:11]} 52. a7 {[%clk 0:00:12]}  Kxg2 {[%clk 0:00:11]} 53. a8=Q+ {[%clk 0:00:12]}  Kxh3 {[%clk 0:00:12]} 54. Qh1+ {[%clk 0:00:12]}  Kg3 {[%clk 0:00:12]} 55. Kc4 {[%clk 0:00:13]}  g5 {[%clk 0:00:11]} 56. Kd3 {[%clk 0:00:14]}  g4 {[%clk 0:00:12]} 57. Ke2 {[%clk 0:00:14]}  h3 {[%clk 0:00:11]} 58. Qg1+ {[%clk 0:00:12]}  Kh4 {[%clk 0:00:10]} 59. Kf2 {[%clk 0:00:12]}  f5 {[%clk 0:00:10]} 60. Qg3+ {[%clk 0:00:13]}  Kg5 {[%clk 0:00:10]} 61. Ke3 {[%clk 0:00:13]}  Kg6 {[%clk 0:00:10]} 62. Kf4 {[%clk 0:00:13]}  Kf6 {[%clk 0:00:10]} 63. Qh4+ {[%clk 0:00:13]}  Ke6 {[%clk 0:00:10]} 64. Qg5 {[%clk 0:00:13]}  h2 {[%clk 0:00:10]} 65. Qxf5+ {[%clk 0:00:13]}  Kd6 {[%clk 0:00:07]} 66. Qh5 {[%clk 0:00:14]} 1-0


[Site "https://www.chess.com"]

[Event "Titled Tuesday Blitz October 31 Early 2023"]
[White "Cardozo Munar, Carlos Eduardo"]
[Black "Tsyhanchuk, Stanislav"]
[WhiteFideId "4409477"]
[BlackFideId "13505130"]
[WhiteElo "2271"]
[BlackElo "2406"]
[Result "0-1"]
[Round "9"]
[TimeControl "180+1"]
[Date "2023.10.31"]
[WhiteClock "0:01:13"]
[BlackClock "0:01:55"]
[Board "106"]

1. d4 {[%clk 0:02:59]}  Nf6 {[%clk 0:02:51]} 2. Bg5 {[%clk 0:02:58]}  Ne4 {[%clk 0:02:50]} 3. h4 {[%clk 0:02:58]}  h6 {[%clk 0:02:48]} 4. Bf4 {[%clk 0:02:58]}  c5 {[%clk 0:02:47]} 5. d5 {[%clk 0:02:58]}  Nf6 {[%clk 0:02:48]} 6. Nc3 {[%clk 0:02:57]}  d6 {[%clk 0:02:47]} 7. e4 {[%clk 0:02:57]}  g6 {[%clk 0:02:47]} 8. Nf3 {[%clk 0:02:58]}  Bg7 {[%clk 0:02:48]} 9. Qd2 {[%clk 0:02:53]}  Ng4 {[%clk 0:02:33]} 10. O-O-O {[%clk 0:02:34]}  Nd7 {[%clk 0:02:32]} 11. Bb5 {[%clk 0:02:33]}  a6 {[%clk 0:02:29]} 12. Be2 {[%clk 0:02:25]}  b5 {[%clk 0:02:25]} 13. h5 {[%clk 0:02:25]}  g5 {[%clk 0:02:22]} 14. Bg3 {[%clk 0:02:16]}  b4 {[%clk 0:02:12]} 15. Na4 {[%clk 0:02:06]}  Qa5 {[%clk 0:02:05]} 16. b3 {[%clk 0:02:06]}  Nb6 {[%clk 0:01:56]} 17. Nxb6 {[%clk 0:01:13]}  Qa3+ {[%clk 0:01:55]} 0-1


[Site "https://www.chess.com"]

[Event "Titled Tuesday Blitz October 31 Early 2023"]
[White "Mirzanurov, Bulat"]
[Black "Marcziter, Dmitrii"]
[WhiteFideId "4184521"]
[BlackFideId "13900765"]
[WhiteElo "2220"]
[BlackElo "2373"]
[Result "0-1"]
[Round "9"]
[TimeControl "180+1"]
[Date "2023.10.31"]
[WhiteClock "0:00:00"]
[BlackClock "0:00:01"]
[Board "111"]

1. e3 {[%clk 0:03:00]}  e5 {[%clk 0:02:59]} 2. e4 {[%clk 0:03:01]}  Nf6 {[%clk 0:02:57]} 3. d3 {[%clk 0:02:53]}  d5 {[%clk 0:02:51]} 4. exd5 {[%clk 0:02:46]}  Nxd5 {[%clk 0:02:48]} 5. Nf3 {[%clk 0:02:42]}  Nc6 {[%clk 0:02:47]} 6. Be2 {[%clk 0:02:35]}  Be7 {[%clk 0:02:43]} 7. O-O {[%clk 0:02:34]}  O-O {[%clk 0:02:43]} 8. Nc3 {[%clk 0:02:30]}  Be6 {[%clk 0:02:41]} 9. Nxd5 {[%clk 0:02:28]}  Bxd5 {[%clk 0:02:41]} 10. Be3 {[%clk 0:02:28]}  Qd7 {[%clk 0:02:36]} 11. a3 {[%clk 0:02:20]}  a5 {[%clk 0:02:35]} 12. c4 {[%clk 0:02:09]}  Be6 {[%clk 0:02:32]} 13. d4 {[%clk 0:02:09]}  exd4 {[%clk 0:02:27]} 14. Nxd4 {[%clk 0:02:08]}  Nxd4 {[%clk 0:02:27]} 15. Qxd4 {[%clk 0:02:07]}  Qxd4 {[%clk 0:02:24]} 16. Bxd4 {[%clk 0:02:08]}  Rad8 {[%clk 0:02:23]} 17. Bc3 {[%clk 0:02:02]}  b6 {[%clk 0:02:20]} 18. Rad1 {[%clk 0:02:01]}  f6 {[%clk 0:02:12]} 19. h3 {[%clk 0:01:50]}  Kf7 {[%clk 0:02:10]} 20. a4 {[%clk 0:01:40]}  Bd7 {[%clk 0:02:06]} 21. b3 {[%clk 0:01:38]}  Bc6 {[%clk 0:02:04]} 22. Rfe1 {[%clk 0:01:31]}  Bc5 {[%clk 0:02:00]} 23. Bg4 {[%clk 0:01:28]}  Rxd1 {[%clk 0:01:55]} 24. Rxd1 {[%clk 0:01:23]}  g6 {[%clk 0:01:53]} 25. Bd7 {[%clk 0:01:16]}  Be4 {[%clk 0:01:39]} 26. Bb5 {[%clk 0:00:53]}  Bd6 {[%clk 0:01:32]} 27. c5 {[%clk 0:00:45]}  Bxc5 {[%clk 0:01:26]} 28. Rd7+ {[%clk 0:00:41]}  Ke6 {[%clk 0:01:23]} 29. Rxc7 {[%clk 0:00:39]}  Bd5 {[%clk 0:01:07]} 30. Rxh7 {[%clk 0:00:31]}  Bxb3 {[%clk 0:01:05]} 31. Rh4 {[%clk 0:00:22]}  Rd8 {[%clk 0:00:56]} 32. Re4+ {[%clk 0:00:22]}  Kf5 {[%clk 0:00:50]} 33. Re1 {[%clk 0:00:17]}  g5 {[%clk 0:00:44]} 34. g4+ {[%clk 0:00:13]}  Kg6 {[%clk 0:00:41]} 35. Kg2 {[%clk 0:00:11]}  Bd5+ {[%clk 0:00:39]} 36. f3 {[%clk 0:00:11]}  Bb3 {[%clk 0:00:36]} 37. Rb1 {[%clk 0:00:07]}  Bf7 {[%clk 0:00:31]} 38. Re1 {[%clk 0:00:06]}  Bb4 {[%clk 0:00:29]} 39. Bxb4 {[%clk 0:00:04]}  axb4 {[%clk 0:00:28]} 40. Re2 {[%clk 0:00:03]}  b3 {[%clk 0:00:27]} 41. Rb2 {[%clk 0:00:03]}  Rc8 {[%clk 0:00:25]} 42. Kg3 {[%clk 0:00:01]}  Kg7 {[%clk 0:00:23]} 43. Bd3 {[%clk 0:00:01]}  Rc3 {[%clk 0:00:22]} 44. Bf5 {[%clk 0:00:02]}  Be8 {[%clk 0:00:20]} 45. Rf2 {[%clk 0:00:03]}  Bxa4 {[%clk 0:00:19]} 46. h4 {[%clk 0:00:04]}  b5 {[%clk 0:00:14]} 47. h5 {[%clk 0:00:03]}  b4 {[%clk 0:00:13]} 48. Re2 {[%clk 0:00:02]}  Bc6 {[%clk 0:00:12]} 49. Re7+ {[%clk 0:00:02]}  Kf8 {[%clk 0:00:12]} 50. Re6 {[%clk 0:00:02]}  Bxf3 {[%clk 0:00:10]} 51. Rxf6+ {[%clk 0:00:02]}  Ke7 {[%clk 0:00:10]} 52. Re6+ {[%clk 0:00:02]}  Kf7 {[%clk 0:00:10]} 53. Rb6 {[%clk 0:00:02]}  Be4+ {[%clk 0:00:07]} 54. Kf2 {[%clk 0:00:02]}  Bxf5 {[%clk 0:00:05]} 55. gxf5 {[%clk 0:00:02]}  Rh3 {[%clk 0:00:01]} 56. Rxb4 {[%clk 0:00:00]}  b2 {[%clk 0:00:01]} 0-1


[Site "https://www.chess.com"]

[Event "Titled Tuesday Blitz October 31 Early 2023"]
[White "Zaksaite, Salomeja"]
[Black "Phillips, Rene"]
[WhiteFideId "12801496"]
[BlackFideId "2056275"]
[WhiteElo "2338"]
[BlackElo "2042"]
[Result "0-1"]
[Round "9"]
[TimeControl "180+1"]
[Date "2023.10.31"]
[WhiteClock "0:01:26"]
[BlackClock "0:01:15"]
[Board "114"]

1. e4 {[%clk 0:02:57]}  Nc6 {[%clk 0:03:00]} 2. Nc3 {[%clk 0:02:53]}  Nf6 {[%clk 0:02:59]} 3. d4 {[%clk 0:02:50]}  d5 {[%clk 0:02:59]} 4. e5 {[%clk 0:02:50]}  Nd7 {[%clk 0:02:59]} 5. f4 {[%clk 0:02:45]}  Nb6 {[%clk 0:02:58]} 6. Nf3 {[%clk 0:02:44]}  Bg4 {[%clk 0:02:58]} 7. Be2 {[%clk 0:02:42]}  e6 {[%clk 0:02:56]} 8. Be3 {[%clk 0:02:42]}  Be7 {[%clk 0:02:52]} 9. O-O {[%clk 0:02:41]}  O-O {[%clk 0:02:45]} 10. Qd2 {[%clk 0:02:41]}  Na5 {[%clk 0:02:44]} 11. b3 {[%clk 0:02:41]}  Nc6 {[%clk 0:02:41]} 12. Nd1 {[%clk 0:02:40]}  a6 {[%clk 0:02:33]} 13. Nf2 {[%clk 0:02:40]}  Bf5 {[%clk 0:02:28]} 14. g4 {[%clk 0:02:34]}  Be4 {[%clk 0:02:26]} 15. c3 {[%clk 0:02:32]}  h6 {[%clk 0:02:25]} 16. Nxe4 {[%clk 0:02:32]}  dxe4 {[%clk 0:02:25]} 17. Ne1 {[%clk 0:02:29]}  f5 {[%clk 0:02:03]} 18. exf6 {[%clk 0:02:28]}  Bxf6 {[%clk 0:02:02]} 19. Ng2 {[%clk 0:02:23]}  Nd5 {[%clk 0:01:53]} 20. Rad1 {[%clk 0:02:19]}  b5 {[%clk 0:01:41]} 21. Qe1 {[%clk 0:02:18]}  b4 {[%clk 0:01:36]} 22. cxb4 {[%clk 0:01:56]}  Ncxb4 {[%clk 0:01:31]} 23. Bc4 {[%clk 0:01:56]}  Nc2 {[%clk 0:01:16]} 24. g5 {[%clk 0:01:26]}  Nxe1 {[%clk 0:01:15]} 0-1


[Site "https://www.chess.com"]

[Event "Titled Tuesday Blitz October 31 Early 2023"]
[White "ssgm49"]
[Black "Dishman, Stephen"]
[BlackFideId "403024"]
[WhiteElo "1971"]
[BlackElo "2333"]
[Result "0-1"]
[Round "9"]
[TimeControl "180+1"]
[Date "2023.10.31"]
[WhiteClock "0:00:00"]
[BlackClock "0:00:18"]
[Board "115"]

1. Nf3 {[%clk 0:02:59]}  d5 {[%clk 0:02:58]} 2. d4 {[%clk 0:02:58]}  e6 {[%clk 0:02:56]} 3. c4 {[%clk 0:02:55]}  a6 {[%clk 0:02:56]} 4. e3 {[%clk 0:02:51]}  Nf6 {[%clk 0:02:54]} 5. Nc3 {[%clk 0:02:51]}  c5 {[%clk 0:02:54]} 6. cxd5 {[%clk 0:02:30]}  exd5 {[%clk 0:02:55]} 7. Be2 {[%clk 0:02:26]}  Nc6 {[%clk 0:02:55]} 8. O-O {[%clk 0:02:21]}  c4 {[%clk 0:02:55]} 9. Ne5 {[%clk 0:02:16]}  Bd6 {[%clk 0:02:51]} 10. f4 {[%clk 0:02:08]}  O-O {[%clk 0:02:48]} 11. Bf3 {[%clk 0:02:01]}  Bf5 {[%clk 0:02:23]} 12. Nxd5 {[%clk 0:01:40]}  Nxd5 {[%clk 0:02:11]} 13. Bxd5 {[%clk 0:01:34]}  Bxe5 {[%clk 0:01:59]} 14. Bxc6 {[%clk 0:01:34]}  Bf6 {[%clk 0:01:32]} 15. Bxb7 {[%clk 0:01:28]}  Rb8 {[%clk 0:01:32]} 16. Bf3 {[%clk 0:01:25]}  Qb6 {[%clk 0:01:20]} 17. Qd2 {[%clk 0:01:01]}  Rfc8 {[%clk 0:01:12]} 18. Rd1 {[%clk 0:00:55]}  Bd3 {[%clk 0:01:04]} 19. Qc3 {[%clk 0:00:41]}  Be7 {[%clk 0:00:55]} 20. a3 {[%clk 0:00:28]}  Qg6 {[%clk 0:00:53]} 21. b4 {[%clk 0:00:22]}  Be4 {[%clk 0:00:47]} 22. Bxe4 {[%clk 0:00:18]}  Qxe4 {[%clk 0:00:48]} 23. Ra2 {[%clk 0:00:14]}  a5 {[%clk 0:00:48]} 24. bxa5 {[%clk 0:00:12]}  Rb3 {[%clk 0:00:47]} 25. Qc2 {[%clk 0:00:10]}  Rd3 {[%clk 0:00:43]} 26. Rxd3 {[%clk 0:00:10]}  Qxd3 {[%clk 0:00:43]} 27. Qxd3 {[%clk 0:00:10]}  cxd3 {[%clk 0:00:44]} 28. Bd2 {[%clk 0:00:09]}  Rb8 {[%clk 0:00:30]} 29. e4 {[%clk 0:00:08]}  Bd8 {[%clk 0:00:17]} 30. e5 {[%clk 0:00:05]}  Ra8 {[%clk 0:00:17]} 31. d5 {[%clk 0:00:04]}  Bxa5 {[%clk 0:00:17]} 32. Bxa5 {[%clk 0:00:04]}  Rxa5 {[%clk 0:00:18]} 33. d6 {[%clk 0:00:05]}  Rd5 {[%clk 0:00:18]} 34. Rd2 {[%clk 0:00:04]}  f6 {[%clk 0:00:18]} 35. exf6 {[%clk 0:00:00]}  gxf6 {[%clk 0:00:18]} 0-1


[Site "https://www.chess.com"]